Cogmind - Beta 14 @@@ ROGUE MODE // 2024.10.14 @ 21:10:34 Player: Shockbound Result: Destroyed by B-75 Beast with Heavy Plasma Cannon Performance ------------- Evolutions (1) 500 Regions Visited (5) 1000 Robots Destroyed (14) 70 Value Destroyed (212) 212 Prototype IDs (2) 40 Alien Tech Used (0) 0 Bonus (709) 709 TOTAL SCORE: 2531 Bonus ------- Follower Combat Kills 109 Met Imprinter 300 Was Imprinted 300 Cogmind --------- Core Integrity 0/400 Matter 300/300 Energy 99/100 System Corruption 0% Temperature Cool (12) Movement Core (50) Location -6/Proximity Caves Parts ------- > --- POWER (1) -------- (None) > --- PROPULSION (4) --- (None) > --- UTILITY (2) ------ Improved Targeting Computer > --- WEAPON (2) ------- (None) > --- INVENTORY (5) ---- Transport Network Coupler 0b10 Decoder Chip [Scout] 0b10 Decoder Chip [Skirmisher] Peak State ------------ > --- POWER ------------ Light Nuclear Core > --- PROPULSION ------- Flight Unit Flight Unit VTOL Module Nuclear Pulse Thruster > --- UTILITY ---------- Improved Targeting Computer Reaction Control System > --- WEAPON ----------- Assault Rifle CR-A16's Pointy Stick > --- INVENTORY -------- Flight Unit Flight Unit Transport Network Coupler 0b10 Decoder Chip [Scout] 0b10 Decoder Chip [Skirmisher] [Rating: 23] Favorites ----------- Power Light Ion Engine Engine Light Ion Engine Power Core Light Nuclear Core Propulsion Flight Unit Leg Aluminum Leg Flight Unit Flight Unit Utility Reaction Control System Device Reaction Control System Storage Small Storage Unit Processor Improved Targeting Computer Weapon Assault Rifle Ballistic Gun Assault Rifle Special Weapon Mining Laser Piercing Weapon CR-A16's Pointy Stick Build | -11 -10 -9 -9 -7 -6 ------- Run | Yrd Mat Mat Min Zio Pro Slots Evolved 2 | . . 2 . . . Power . | . . . . . . Propulsion 2 | . . 2 . . . Utility . | . . . . . . Weapon . | . . . . . . Parts Attached 22 | 6 . 10 1 1 4 Power 3 | 1 . 1 . . 1 Engine 2 | 1 . 1 . . . Core 1 | . . . . . 1 Reactor . | . . . . . . Propulsion 10 | 2 . 5 . . 3 Treads . | . . . . . . Leg 2 | 2 . . . . . Wheel . | . . . . . . Hover . | . . . . . . Flight 8 | . . 5 . . 3 Utility 3 | 1 . 2 . . . Device 1 | . . 1 . . . Storage 1 | 1 . . . . . Processor 1 | . . 1 . . . Hackware . | . . . . . . Protection . | . . . . . . Artifact . | . . . . . . Weapon 6 | 2 . 2 1 1 . Energy Gun . | . . . . . . Energy Cannon . | . . . . . . Ballistic Gun 3 | 2 . 1 . . . Ballistic Cannon . | . . . . . . Launcher . | . . . . . . Special Weapon 2 | . . 1 1 . . Impact Weapon . | . . . . . . Slashing Weapon . | . . . . . . Piercing Weapon 1 | . . . . 1 . Special Melee Weapon . | . . . . . . Unidentified Prototypes . | . . . . . . Parts Lost 11 | . 1 1 . . 9 Power 2 | . 1 . . . 1 Propulsion 5 | . . . . . 5 Utility 1 | . . . . . 1 Weapon 3 | . . 1 . . 2 Highest Loss Streak 9 | . 1 1 . . 9 To Critical Strikes . | . . . . . . Average Slot Usage (%) 94 | . 81 88 98 100 92 Engine 9 | . 10 10 11 11 3 Core 1 | . . . . . 6 Leg 4 | . 28 . . . . Flight 35 | . . 40 44 44 39 Device 8 | . . 8 11 11 9 Storage 2 | . 14 8 . . . Processor 8 | . . 2 11 11 11 Ballistic Gun 13 | . 28 13 11 11 9 Special Weapon 2 | . . 4 9 3 . Piercing Weapon 6 | . . . . 7 11 Peak Build Rating 23 | 6 6 12 12 16 23 Average Rating 13 | 4 5 10 11 14 20 On Entrance 8 | . 6 5 11 12 16 Naked Turns . | . . . . . . Heaviest Build 13 | 12 12 13 7 9 11 Greatest Support 20 | 20 20 16 16 16 18 Greatest Overweight (x) 3 | 3 . . . . 2 Average Overweight (x) . | . . . . . . Largest Inventory Capacity 8 | 8 8 8 5 5 5 Average Capacity 5 | 7 8 7 5 5 5 Most Carried 7 | 3 7 7 5 5 5 Average Carried 4 | . 2 2 4 4 4 Final Capacity 8 | 8 8 5 5 5 5 Final Carried 7 | . 7 5 4 5 3 Class Distribution -------------------- 71% | Scavenger-Sprinter 21% | Mutant 6% | Sprinter Dominant Class ---------------- Mutant | -10/Materials Scavenger-Sprinter | -9/Materials Scavenger-Sprinter | -9/Mines Scavenger-Sprinter | -7/Zion Scavenger-Sprinter | -6/Proximity Caves Resources | -11 -10 -9 -9 -7 -6 ----------- Run | Yrd Mat Mat Min Zio Pro Matter Collected 586 | 237 107 28 . 184 30 Remotely . | . . . . . . Salvage Created 330 | . 246 61 . . 23 Parts 29 | . 22 7 . . . Haulers Intercepted 2 | . 2 . . . . Recyclers Shooed . | . . . . . . Parts Field Recycled . | . . . . . . Retrieved Matter . | . . . . . . Parts Self-Destructed 8 | . . . . 1 7 Prevented . | . . . . . . Kills | -11 -10 -9 -9 -7 -6 ------- Run | Yrd Mat Mat Min Zio Pro Combat Hostiles Destroyed 12 | . 7 4 . . 1 Melee 1 | . . . . . 1 Guns 11 | . 7 4 . . . Classes Destroyed 3 | . 3 . . . . Hauler 2 | . 2 . . . . Swarmer 10 | . 5 4 . . 1 Grunt 2 | . 2 . . . . Best Kill Streak 4 | . 4 4 . . 1 Combat Bots Only 4 | . 4 4 . . 1 Max Kills in Single Turn 2 | . 2 1 . . 1 Gunslinging 1 | . 1 . . . . Exploded . | . . . . . . Melee 1 | . . . . . 1 Uniques/NPCs Destroyed . | . . . . . . Combat | -11 -10 -9 -9 -7 -6 -------- Run | Yrd Mat Mat Min Zio Pro Hostile Shots Fired 164 | . 53 21 . . 90 Missed 65 | . 16 12 . . 37 Damage Taken 1189 | . 373 73 . . 743 Core 514 | . 106 6 . . 402 Absorbed by Shields . | . . . . . . Core Remaining (%) 78 | 100 57 . . . . Volleys Fired 33 | . 26 7 . . . Largest 2 | . 2 2 . . . Hottest 120 | . 40 120 . . . Shots Fired 63 | . 52 11 . . . Gun 62 | . 52 10 . . . Cannon . | . . . . . . Launcher . | . . . . . . Special 1 | . . 1 . . . Kinetic 62 | . 52 10 . . . Thermal 1 | . . 1 . . . Explosive . | . . . . . . Electromagnetic . | . . . . . . Robot Hit Streak 7 | . 5 7 . . . Robot Miss Streak 3 | . 3 1 . . . Penetration Max . | . . . . . . Secondary Targets 3 | . 3 . . . . Max Gunslinging Chain 1 | . 1 . . . . Shots Hit Robots 36 | . 29 6 . . 1 Core Hits 17 | . 12 4 . . 1 Critical Kills . | . . . . . . Critical Parts Destroyed . | . . . . . . Critical Strikes . | . . . . . . Melee Attacks 6 | . . . . 1 5 Impact . | . . . . . . Slashing . | . . . . . . Piercing 6 | . . . . 1 5 Sneak Attacks . | . . . . . . Combat Hostiles . | . . . . . . Follow-up Attacks . | . . . . . . Damage Inflicted 531 | . 391 90 . . 50 Guns 481 | . 391 90 . . . Cannons . | . . . . . . Explosions . | . . . . . . Melee 50 | . . . . . 50 Ramming . | . . . . . . Kinetic 481 | . 391 90 . . . Thermal . | . . . . . . Explosive . | . . . . . . Electromagnetic . | . . . . . . Impact . | . . . . . . Slashing . | . . . . . . Piercing 50 | . . . . . 50 Highest Corruption . | . . . . . . Average Corruption . | . . . . . . Corruption Purged . | . . . . . . Corruption Blocked . | . . . . . . Overload Shots . | . . . . . . Overflow Damage . | . . . . . . Projectiles . | . . . . . . Explosions . | . . . . . . Melee . | . . . . . . Knockbacks . | . . . . . . Impact . | . . . . . . Kinetic . | . . . . . . Secondary . | . . . . . . Self-Inflicted Damage . | . . . . . . Shots . | . . . . . . Rammed . | . . . . . . Targets Rammed . | . . . . . . Kicked . | . . . . . . Crushed . | . . . . . . Highest Temperature 29 | . 2 29 . . . Average Temperature 9 | . 2 14 . . . Received Heat Transfer 129 | . 93 . . . 36 Siege Activations . | . . . . . . Robots Corrupted . | . . . . . . Combat Hostiles . | . . . . . . Parts Fried . | . . . . . . Impact Corruptions . | . . . . . . Robots Melted . | . . . . . . Combat Hostiles . | . . . . . . Parts Melted . | . . . . . . Heat Transferred . | . . . . . . Parts Sabotaged . | . . . . . . Parts Stolen . | . . . . . . Parts Stripped . | . . . . . . Power Chain Reactions . | . . . . . . Alert | -11 -10 -9 -9 -7 -6 ------- Run | Yrd Mat Mat Min Zio Pro Peak Influence 269 | . 269 223 86 . . Initial 113 | . . 113 86 . . Average 98 | . 110 138 86 . . Maximum Alert Level 1 | . 1 1 . . . Low Security (%) 85 | 100 79 83 100 . . Level 1 14 | . 20 16 . . . Level 2 . | . . . . . . Level 3 . | . . . . . . Level 4 . | . . . . . . Level 5 . | . . . . . . High Security . | . . . . . . Max Security . | . . . . . . Squads Dispatched 1 | . 1 . . . . Investigation . | . . . . . . Extermination . | . . . . . . Reinforcement 1 | . 1 . . . . Assault . | . . . . . . Garrison . | . . . . . . Intercept . | . . . . . . Searches Triggered . | . . . . . . Construction Impeded . | . . . . . . Haulers Reinforced . | . . . . . . Active Scanning Responses . | . . . . . . Cargo Convoy Interrupts . | . . . . . . Stealth | -11 -10 -9 -9 -7 -6 --------- Run | Yrd Mat Mat Min Zio Pro Distress Signals 2 | . . 2 . . . Communications Jammed . | . . . . . . Distress Signals . | . . . . . . Times Spotted 41 | . 15 6 . . 20 Peak Tracking Total 8 | . 6 6 . . 8 Tactical Retreats 5 | . 3 . . . 2 Traps | -11 -10 -9 -9 -7 -6 ------- Run | Yrd Mat Mat Min Zio Pro Traps Triggered . | . . . . . . Indirectly . | . . . . . . Trap Hack Attempts . | . . . . . . Triggered . | . . . . . . Disarmed . | . . . . . . Reprogrammed . | . . . . . . Reused . | . . . . . . Traps Extracted . | . . . . . . Installed . | . . . . . . Triggered . | . . . . . . Machines | -11 -10 -9 -9 -7 -6 ---------- Run | Yrd Mat Mat Min Zio Pro Machines Disabled 1 | . . 1 . . . Max in Single Turn 1 | . . 1 . . . Machines Repaired . | . . . . . . Machines Dismantled . | . . . . . . Machines Sabotaged . | . . . . . . Overloaded Fab Kills . | . . . . . . Hacking | -11 -10 -9 -9 -7 -6 --------- Run | Yrd Mat Mat Min Zio Pro Machines Accessed 3 | . 2 1 . . . Terminals 2 | . 1 1 . . . Fabricators . | . . . . . . Repair Stations . | . . . . . . Recycling Units 1 | . 1 . . . . Scanalyzers . | . . . . . . Garrison Access . | . . . . . . Total Hacks 7 | . 5 2 . . . Successful 3 | . 3 . . . . Failed 4 | . 2 2 . . . Catastrophic . | . . . . . . Database Lockouts . | . . . . . . Manual 5 | . 3 . . 2 . Terminals 6 | . 4 2 . . . Fabricators . | . . . . . . Repair Stations . | . . . . . . Recycling Units 1 | . 1 . . . . Scanalyzers . | . . . . . . Garrison Access . | . . . . . . Terminal Hacks 2 | . 2 . . . . Prototype ID Bank 1 | . 1 . . . . Branch Access Points 1 | . 1 . . . . Fabricator Hacks . | . . . . . . Repair Station Hacks . | . . . . . . Recycling Unit Hacks 1 | . 1 . . . . Report Inventory 1 | . 1 . . . . Scanalyzer . | . . . . . . Garrison Access Hacks . | . . . . . . Unauthorized Hacks . | . . . . . . Terminals . | . . . . . . Fabricators . | . . . . . . Repair Stations . | . . . . . . Recycling Units . | . . . . . . Scanalyzers . | . . . . . . Garrison Access . | . . . . . . Data Cores Recovered . | . . . . . . Used . | . . . . . . Hacking Detections 2 | . 1 1 . . . Full Trace Events . | . . . . . . Feedback Events . | . . . . . . Feedback Blocked . | . . . . . . Robot Schematics Acquired 2 | . . . . 2 . Robots Built . | . . . . . . Authchips . | . . . . . . Time . | . . . . . . Total Robot Build Rating . | . . . . . . Part Schematics Acquired 13 | . . . . 13 . Parts Built . | . . . . . . Authchips . | . . . . . . Time . | . . . . . . Total Part Build Rating . | . . . . . . Parts Repaired . | . . . . . . Time . | . . . . . . Parts Recycled . | . . . . . . Recycled Matter . | . . . . . . Retrieved Matter . | . . . . . . Retrieved Components . | . . . . . . Parts Scanalyzed . | . . . . . . Part Schematics Acquired . | . . . . . . Parts Damaged . | . . . . . . Bothacking | -11 -10 -9 -9 -7 -6 ------------ Run | Yrd Mat Mat Min Zio Pro Used RIF Installer . | . . . . . . Robots Hacked . | . . . . . . Non-combat . | . . . . . . Combat . | . . . . . . Robot Hacks Applied . | . . . . . . Relay Couplers Released . | . . . . . . Fabnet Peak Effective % . | . . . . . . Robots Rewired . | . . . . . . Allies Hacked . | . . . . . . Hacks Repelled . | . . . . . . Allies | -11 -10 -9 -9 -7 -6 -------- Run | Yrd Mat Mat Min Zio Pro Total Allies 4 | . . . . 4 . Largest Group 4 | . . . . 4 4 Highest-Rated Group 148 | . . . . 148 148 Highest-Rated Ally 38 | . . . . 38 38 Total Orders . | . . . . . . Ally Attacks 21 | . . . . . 21 Total Damage 556 | . . . . . 556 Kills 6 | . . . . . 6 Allies Corrupted . | . . . . . . Allies Melted . | . . . . . . Intel | -11 -10 -9 -9 -7 -6 ------- Run | Yrd Mat Mat Min Zio Pro Robot Analysis Total . | . . . . . . Derelict Logs Recovered 2 | . . . 1 1 . Drone Launches . | . . . . . . Drone Recoveries . | . . . . . . Exploration | -11 -10 -9 -9 -7 -6 ------------- Run | Yrd Mat Mat Min Zio Pro Turns Passed 2063 | 82 335 117 62 1077 390 Spaces Moved 3682 | 56 203 191 190 2498 544 Core 53 | 16 . . . . 37 Treads . | . . . . . . Legs 243 | 40 203 . . . . Wheels . | . . . . . . Hover . | . . . . . . Flight 3386 | . . 191 190 2498 507 Fastest Speed 29 | 50 120 31 31 31 29 Average Speed 37 | 123 120 31 31 31 33 Slowest Speed 200 | 200 120 31 31 31 150 Overloaded Moves . | . . . . . . Propulsion Burnouts . | . . . . . . Robots Hopped . | . . . . . . Cave-ins Triggered . | . . . . . . Exploration Rate (%) 41 | 4 42 23 53 91 33 Regions Visited 5 Branch Regions 3 Pre-discovered Areas 1 | . . . . 1 . Known Exits Taken . | . . . . . . Unknown Exits Taken 5 | 1 1 1 1 1 . Scrap Searched 3 | . . . . 2 1 Spaces Dug . | . . . . . . Terrain Destroyed . | . . . . . . Melee . | . . . . . . Projectile . | . . . . . . AOE . | . . . . . . Terrain Rammed . | . . . . . . Walls Destroyed . | . . . . . . Machines Disabled . | . . . . . . Actions | -11 -10 -9 -9 -7 -6 --------- Run | Yrd Mat Mat Min Zio Pro Total 4284 | 69 243 238 192 2798 744 Wait 509 | . 6 20 2 295 186 Move 3677 | 55 202 190 189 2497 544 Hop . | . . . . . . Pick Up 23 | 7 8 5 . 2 1 Fast Attach 1 | . . . . 1 . Attach 17 | 6 . 9 1 . 1 Detach 2 | . . 2 . . . Swap 4 | . . 1 . . 3 Drop 12 | 1 1 4 . 2 4 Fire 33 | . 26 7 . . . Melee 6 | . . . . 1 5 Ram . | . . . . . . Kick . | . . . . . . Crush . | . . . . . . Escape Stasis . | . . . . . . Rewire . | . . . . . . Trap . | . . . . . . Miscellaneous . | . . . . . . Route ------- -11/Scrapyard -10/Materials (discovered 4 exits: *Mat x2 / *Min x2) -9/Materials -9/Mines (discovered 3 exits: [*Mat x2] / *Zio) -7/Zion -6/Proximity Caves History --------- Turn | Location | Event 27 | -11/Scrapyard | Discovered new exit (range 16) 83 | -11/Scrapyard | Entered Materials 158 | -10/Materials | Discovered new exit (range 12) 267 | -10/Materials | Discovered new exit (range 5) 312 | -10/Materials | Build established: Mutant 371 | -10/Materials | Discovered new exit (range 13) 405 | -10/Materials | Identified exit to Mines 418 | -10/Materials | Entered another Materials area 418 | -9/Materials | Evolved 2 slots: Propulsion x2 495 | -9/Materials | Discovered new exit (range 8) 535 | -9/Materials | Entered Mines 548 | -9/Mines | Assembled infested the area 548 | -9/Mines | Learned Materials emergency access door positions 553 | -9/Mines | Assisted by a Guerilla fighting off Assembled 565 | -9/Mines | Met a Derelict bent on vengeance 567 | -9/Mines | Discovered new exit (range 15) 588 | -9/Mines | Discovered new exit (range 15) 594 | -9/Mines | A Derelict revealed a hidden shortcut to a safe place 597 | -9/Mines | Entered Zion 713 | -7/Zion | Build established: Scavenger-Sprinter 761 | -7/Zion | Met Imprinter 769 | -7/Zion | Imprinted 774 | -7/Zion | Declared Zion's savior 891 | -7/Zion | Learned Factory emergency access door positions 947 | -7/Zion | Found CR-A16's Pointy Stick 1150 | -7/Zion | Discovered new exit (range 15) 1674 | -7/Zion | Entered Proximity Caves 1674 | -6/Proximity Caves | Accompanied by 4 allies 2051 | -6/Proximity Caves | Core integrity fell below 50% 2060 | -6/Proximity Caves | Attracted the attention of an 0b10 checkpoint 2062 | -6/Proximity Caves | Core integrity fell below 20% 2064 | -6/Proximity Caves | Spotted B-75 Beast 2064 | -6/Proximity Caves | Destroyed by B-75 Beast with Heavy Plasma Cannon Last Messages --------------- MI-K48(M) destroyed. S-27 Virus destroyed. VTOL Module fries itself beyond repair. Dropped Lgt. Ion Engine. Acquired 10 matter. VTOL Module fries itself beyond repair. Acquired VTOL Module. Dropped Flight Unit. Acquired 10 matter. C-30 ARC bursts open, deploying its payload. S-27 Virus unfolds itself. Nuclear Pulse Thruster destroyed. Reaction Control System destroyed. VTOL Module destroyed. Assault Rifle destroyed. Flight Unit destroyed. Lgt. Nuclear Core destroyed. Y-54 Guardian: "INTERCEPTING UNREGISTERED DERELICT." CR-A16's Pointy Stick destroyed. Map ----- +----------------------------------------------------+ | ?????????????????????????????????????????????????? | | ?????????????????????????????????????????????????? | | ?????????????????????????????????????????????????? | | ?????????????????????????????????????????????????? | | ?????????????????????????????????????????????????? | | ?????????????????????????????????????????????????? | | ?????????????????????????????????????????????????? | | ?????????????????????????????????????????????????? | | ?????????????????????????????????????????????????? | | ?????????????????????????????????????????????????? | | ???####??????????????????????????????????????????? | | ??? ??????????????BB ?????????????????????????? | | ??? ##?#####???????? ?????????????????????????? | | ??? ## ###?????? ?????????????????????????? | | ??? ????? ?????????????????????????? | | ??? ????? ????????????????????????? | | ??? #?????# ????????????????????????? | | ???# #?????# ????????????????????????? | | ???# #??????# ????????????????????????? | | ?### #??????# ????????????????????????? | | ## ##?????# ????????????????????????? | | # #?????# ????????????????????????? | | #?????# ###?????????????????????? | | #?????# #?????????????????????? | | #?????? #?????????????????????? | | " ## #####????????#@ #?????????????????????? | | %### ## ########?????# #?????????????????????? | | "#?# ## ####### ##????????????????????? | | #?# ### # #????????????????????? | | ### ## ##### #????????????????????? | | ## ##???### #????????????????????? | | #### ###??????## Y #????????????????????? | | #??# ##?????????# #????????????????????? | | ##??## ##??????????# #????????????????????? | | #????###???????????## #????????????????????? | | ????????????????????#########????????????????????? | | ?????????????????????????????????????????????????? | | ?????????????????????????????????????????????????? | | ?????????????????????????????????????????????????? | | ?????????????????????????????????????????????????? | | ?????????????????????????????????????????????????? | | ?????????????????????????????????????????????????? | | ?????????????????????????????????????????????????? | | ?????????????????????????????????????????????????? | | ?????????????????????????????????????????????????? | | ?????????????????????????????????????????????????? | | ?????????????????????????????????????????????????? | | ?????????????????????????????????????????????????? | | ?????????????????????????????????????????????????? | | ?????????????????????????????????????????????????? | +----------------------------------------------------+ Best States ------------- Heat Dissipation 28 Energy Generation 14 Energy Capacity 160 Matter Stores 300 Matter Capacity 300 Sight Range 16 Terrain Scan Density 10 Evasion (%) 72 Targeting Accuracy 6 Item Schematics ----------------- Imp. Cryofiber Web | -7/Zion | Archive Proton Cannon | -7/Zion | Archive Imp. Field Recycling Unit | -7/Zion | Archive Hvy. Plasma Cannon | -7/Zion | Archive Imp. Cooling System | -7/Zion | Archive Imp. Recalibrator | -7/Zion | Archive Hyp. Gauss Cannon | -7/Zion | Archive Core Analyzer | -7/Zion | Archive System Guard | -7/Zion | Archive Matter Compressor | -7/Zion | Archive Kinecellerator | -7/Zion | Archive Imp. Particle Charger | -7/Zion | Archive Adv. Assault Cannon | -7/Zion | Archive Robot Schematics ------------------ B-48 Gladiator | -7/Zion | Archive T-07 Excavator | -7/Zion | Archive Fabricated ------------ Nothing Alien Tech Used ----------------- None Achievements -------------- Robot Respite The One Challenges ------------ None Game ------ Seed BiocellSpectralTorch Manual? 0 Play Time 00:43:30 Cumulative 9.4 hours Start 2024.10.14 @ 20:15:53 End 2024.10.14 @ 21:10:34 Sessions 1 Manual Loads 0 Difficulty Rogue Special Mode None Game No. 12 Rogue 12 Adventurer 0 Explorer 0 Win Type - Total 0 Types 0/0/0/0/0/0/0/0/0 Lore% 13 Gallery% 13 Achievement% 15 Wizard Run 0 Options --------- Layout 1 ASCII 0 Keyboard 0 Movement Mouse Keybinds 0 Fullscreen 0 Font 20/SmallcapsGlow Map View 50x35 Zoom Use 0% Tactical HUD 0 Map Filters NONE Filters NONE Steam 1 RUN: 648578f3-a9db-42fe-86d8-e40c70dc9be9